{"text_format":"1","workbook":"xlsx","n_sheets":3,"sheets":["COMPENSAÇÃO","TMU","DADOS TMU"],"not_rendered":{"charts":0,"images":2,"macros":1,"external_links":1,"defined_names":4,"comments":1,"pivot_tables":0},"unopened":[],"bounds":{"document_bytes":16777216,"sheet_cells":100000,"rows_first":2000,"rows_last":500,"rows_between":2000,"halvings":0,"cell_chars":16384,"cell_head_chars":4096},"cells_cut":0,"cells_raw":0,"read":"whole","date_system":"1900"}

{"sheet":"COMPENSAÇÃO","index":0,"n_rows":56,"n_cols":36,"rows_kept":56,"cut":false,"hidden":false,"merged":[[0,1,0,17],[20,1,21,2],[52,1,52,5],[53,1,53,5],[46,3,46,11],[46,12,46,17],[51,1,51,4],[40,1,40,11],[40,12,40,17],[41,1,46,2],[41,3,41,11],[41,12,41,17],[42,3,45,6],[42,7,43,9],[44,7,45,9],[42,14,42,15],[43,14,43,15],[44,14,44,15],[45,14,45,15],[29,12,29,17],[28,7,29,9],[34,3,34,11],[35,3,38,6],[35,7,36,7],[1,1,1,17],[7,16,7,17],[7,3,8,3],[7,12,8,12],[2,2,2,17],[3,2,3,17],[4,1,4,17],[7,13,8,13],[5,1,5,17],[7,14,7,15],[7,4,8,4],[7,5,8,5],[7,6,8,6],[7,7,8,7],[7,9,8,9],[7,10,8,10],[6,1,6,17],[7,8,8,8],[7,11,8,11],[36,8,36,11],[22,1,23,2],[31,12,31,17],[33,1,33,12],[38,8,38,11],[37,7,38,7],[37,8,37,11],[30,7,31,9],[28,3,31,6],[28,12,28,17],[30,12,30,17],[25,1,25,3],[27,3,27,11],[27,1,30,2],[27,12,27,17],[34,1,38,2],[24,1,24,2],[35,8,35,11],[12,12,15,12],[12,13,15,13],[7,1,8,2],[16,5,19,5],[16,11,19,11],[16,12,19,12],[16,13,19,13],[16,4,19,4],[9,1,11,2],[16,1,19,2],[12,5,15,5],[16,10,19,10],[12,1,15,2],[1,19,1,35],[2,20,2,35],[3,20,3,35],[4,19,4,35],[5,19,5,35],[6,19,6,35],[7,19,8,20],[7,31,8,31],[7,32,7,33],[7,21,8,21],[7,22,8,22],[7,23,8,23],[7,24,8,24],[7,25,8,25],[7,26,8,26],[7,34,7,35],[20,19,21,20],[22,19,23,20],[9,19,11,20],[12,19,15,20],[12,23,15,23],[12,30,15,30],[12,31,15,31],[7,27,8,27],[7,28,8,28],[7,29,8,29],[7,30,8,30],[16,19,19,20],[16,22,19,22],[16,23,19,23],[16,28,19,28],[16,29,19,29],[16,30,19,30],[16,31,19,31],[41,19,46,20],[41,21,41,29],[41,30,41,35],[42,21,45,24],[42,25,43,27],[42,32,42,33],[43,32,43,33],[44,25,45,27],[44,32,44,33],[45,32,45,33],[46,21,46,29],[46,30,46,35],[27,30,27,35],[28,21,31,24],[28,25,29,27],[28,30,28,35],[29,30,29,35],[30,25,31,27],[30,30,30,35],[31,30,31,35],[40,19,40,29],[40,30,40,35],[16,15,19,15],[48,9,53,17],[50,19,50,22],[51,19,51,22],[52,19,52,22],[53,19,53,22],[48,19,48,23],[49,19,49,22],[49,1,49,5],[50,1,50,5],[33,19,33,30],[34,19,38,20],[34,21,34,29],[35,21,38,24],[35,25,36,25],[35,26,35,29],[36,26,36,29],[37,25,38,25],[37,26,37,29],[38,26,38,29],[24,19,24,20],[25,19,25,21],[27,19,30,20],[27,21,27,29]]}
[null,"INTRODUZIR DADOS APENAS NOS CAMPOS A AMARELO"]
[]
[null,"Processo n.º: ","xxxxxxxxxxxxx",null,null,null,null,null,null,null,null,null,null,null,null,null,null,null,null,"Processo n.º: "]
[null,"Requerente:","xxxxxxxxxxxxx",null,null,null,null,null,null,null,null,null,null,null,null,null,null,null,null,"Requerente:"]
[]
[null,"1. Áreas mínimas obrigatórias a prever nas operações de loteamento, nas operações urbanísticas de impacte relevante e nas operações urbanísticas de impacte semelhante a uma operação de loteamento",null,null,null,null,null,null,null,null,null,null,null,null,null,null,null,null,null,"1. Áreas mínimas obrigatórias a prever nas operações de loteamento, nas operações urbanísticas de impacte relevante e nas operações urbanísticas de impacte semelhante a uma operação de loteamento"]
[null,"(parâmetros de dimensionamento obrigatório segundo a Portaria n.º 216-B/2008, de 3 de Março, Reg. de liquidação e cobrança de taxas e outras receitas municipais, e Reg. do Plano Director Municipal de Lousada)",null,null,null,null,null,null,null,null,null,null,null,null,null,null,null,null,null,"(parâmetros de dimensionamento obrigatório segundo a Portaria n.º 216-B/2008, de 3 de Março, Reg. de liquidação e cobrança de taxas e outras receitas municipais, e Reg. do Plano Director Municipal de Lousada)"]
[null,"Tipo de ocupação",null,"Áreas e tipologias","N.º de fogos ou estabel.","A.c.hab. (m2)                                  ","A.c.com. (m2)                                  ","A.c.serv. (m2)                                  ","A.c.ind./      armaz.      (m2)                                  ","N. de lotes","A.m.f. ou a.m.estabel. (m2)                                  ","A.m.f. ou a.m.estabel. (m2)                                  ","Espaços verdes e de utilização colectiva (m2)","Equipam. de utilização colectiva (m2)"," Estacionamento ligeiros                                                          ",null," Estacionamento pesados",null,null,"Tipo de ocupação",null,"Áreas e tipologias","N.º de fogos ou estabel.","A.c.hab. (m2)                                  ","A.c.com. (m2)                                  ","A.c.serv. (m2)                                  ","A.c.ind./      armaz.      (m2)                                  ","N. de lotes","A.m.f. ou a.m.estabel. (m2)                                  ","A.m.f. ou a.m.estabel. (m2)                                  ","Espaços verdes e de utilização colectiva (m2)","Equipam. de utilização colectiva (m2)"," Estacionamento ligeiros                                                          ",null," Estacionamento pesados"]
[null,null,null,null,null,null,null,null,null,null,null,null,null,null,"Estacion. Privado","Estacion. público","Estacion. Privado","Estacion. público",null,null,null,null,null,null,null,null,null,null,null,null,null,null,"N.º de lugares","Estacion. público","N.º de lugares","Estacion. público"]
[null,"Habitação em moradia unifamiliar",null,"a.c. < 120m2",null,"¾¾","¾¾","¾¾","¾¾","¾¾","¾¾","¾¾",{"$f":"E10*28","v":0},{"$f":"E10*35","v":0},{"$f":"E10","v":0},{"$f":"E10","v":0},"¾¾","¾¾",null,"Habitação em moradia unifamiliar",null,"a.c. < 120m2",0,"¾¾","¾¾","¾¾","¾¾","¾¾","¾¾","¾¾",{"$f":"W10*28","v":0},{"$f":"W10*35","v":0},{"$f":"W10","v":0},{"$f":"W10","v":0},"¾¾","¾¾"]
[null,null,null,"a.c. entre 120m2 e 300m2",null,"¾¾","¾¾","¾¾","¾¾","¾¾","¾¾","¾¾",{"$f":"E11*28","v":0},{"$f":"E11*35","v":0},{"$f":"E11*2","v":0},{"$f":"E11","v":0},"¾¾","¾¾",null,null,null,"a.c. entre 120m2 e 300m2",0,"¾¾","¾¾","¾¾","¾¾","¾¾","¾¾","¾¾",{"$f":"W11*28","v":0},{"$f":"W11*35","v":0},{"$f":"W11*2","v":0},{"$f":"W11","v":0},"¾¾","¾¾"]
[null,null,null,"a.c. >300m2",null,"¾¾","¾¾","¾¾","¾¾","¾¾","¾¾","¾¾",{"$f":"E12*28","v":0},{"$f":"E12*35","v":0},{"$f":"E12*3","v":0},0,"¾¾","¾¾",null,null,null,"a.c. >300m2",0,"¾¾","¾¾","¾¾","¾¾","¾¾","¾¾","¾¾",{"$f":"W12*28","v":0},{"$f":"W12*35","v":0},{"$f":"W12*3","v":0},0,"¾¾","¾¾"]
[null,"Habitação colectiva - com indicação de tipologia",null,"T0 e T1",null,null,"¾¾","¾¾","¾¾","¾¾","¾¾","¾¾",{"$f":"F13*28/120","v":0},{"$f":"F13*35/120","v":0},{"$f":"E13","v":0},0,"¾¾","¾¾",null,"Habitação colectiva - com indicação de tipologia",null,"T0 e T1",0,0,"¾¾","¾¾","¾¾","¾¾","¾¾","¾¾",{"$f":"X13*28/120","v":0},{"$f":"X13*35/120","v":0},{"$f":"W13","v":0},0,"¾¾","¾¾"]
[null,null,null,"T2 e T3",null,null,"¾¾","¾¾","¾¾","¾¾","¾¾","¾¾",{"$f":"F14*28/120","v":0},{"$f":"F14*35/120","v":0},{"$f":"E14*1.5","v":0},0,"¾¾","¾¾",null,null,null,"T2 e T3",0,null,"¾¾","¾¾","¾¾","¾¾","¾¾","¾¾",{"$f":"X14*28/120","v":0},{"$f":"X14*35/120","v":0},{"$f":"W14*1.5","v":0},0,"¾¾","¾¾"]
[null,null,null,"T4,T5 e T6",null,null,"¾¾","¾¾","¾¾","¾¾","¾¾","¾¾",{"$f":"F15*28/120","v":0},{"$f":"F15*35/120","v":0},{"$f":"E15*2","v":0},0,"¾¾","¾¾",null,null,null,"T4,T5 e T6",0,null,"¾¾","¾¾","¾¾","¾¾","¾¾","¾¾",{"$f":"X15*28/120","v":0},{"$f":"X15*35/120","v":0},{"$f":"W15*2","v":0},0,"¾¾","¾¾"]
[null,null,null,"> T6",null,null,"¾¾","¾¾","¾¾","¾¾","¾¾","¾¾",{"$f":"F16*28/120","v":0},{"$f":"F16*35/120","v":0},{"$f":"E16*3","v":0},0,"¾¾","¾¾",null,null,null,"> T6",0,null,"¾¾","¾¾","¾¾","¾¾","¾¾","¾¾",{"$f":"X16*28/120","v":0},{"$f":"X16*35/120","v":0},{"$f":"W16*3","v":0},0,"¾¾","¾¾"]
[null,"Habitação colectiva - sem indicação de tipologia",null,"a.m.f. < 90m2",null,null,"¾¾","¾¾","¾¾","¾¾",{"$f":"F17/E17","v":{"$error":"#DIV/0!"}},{"$f":"IF(ISERR(K17),0,K17)","v":0},{"$f":"F17*28/120","v":0},{"$f":"F17*35/120","v":0},{"$f":"IF(L17<90,E17,0)","v":0},{"$f":"E17","v":0},"¾¾","¾¾",null,"Habitação colectiva - sem indicação de tipologia",null,"a.m.f. < 90m2",0,0,"¾¾","¾¾","¾¾","¾¾",{"$f":"X17/W17","v":{"$error":"#DIV/0!"}},{"$f":"IF(ISERR(AC17),0,AC17)","v":0},{"$f":"X17*28/120","v":0},{"$f":"X17*35/120","v":0},{"$f":"IF(AD17<90,W17,0)","v":0},{"$f":"AG17","v":0},"¾¾","¾¾"]
[null,null,null,"a.m.f. entre 90m2 e 120m2 ",null,null,"¾¾","¾¾","¾¾","¾¾",null,null,null,null,{"$f":"IF(((120>=L17)*(L17>=90)),E17*1.5,0)","v":0},null,"¾¾","¾¾",null,null,null,"a.m.f. entre 90m2 e 120m2 ",null,null,"¾¾","¾¾","¾¾","¾¾",null,null,null,null,{"$f":"IF(((120>=AD17)*(AD17>=90)),W17*1.5,0)","v":0},{"$f":"AG18","v":0},"¾¾","¾¾"]
[null,null,null,"a.m.f. entre 120m2 e 300m2 ",null,null,"¾¾","¾¾","¾¾","¾¾",null,null,null,null,{"$f":"IF(((300>=L17)*(L17>120)),E17*2,0)","v":0},null,"¾¾","¾¾",null,null,null,"a.m.f. entre 120m2 e 300m2 ",null,null,"¾¾","¾¾","¾¾","¾¾",null,null,null,null,{"$f":"IF(((300>=AD17)*(AD17>120)),W17*2,0)","v":0},{"$f":"AG19","v":0},"¾¾","¾¾"]
[null,null,null,"a.m.f. > 300m2 ",null,null,"¾¾","¾¾","¾¾","¾¾",null,null,null,null,{"$f":"IF(L17>300,E17*3,0)","v":0},null,"¾¾","¾¾",null,null,null,"a.m.f. > 300m2 ",null,null,"¾¾","¾¾","¾¾","¾¾",null,null,null,null,{"$f":"IF(AD17>300,W17*3,0)","v":0},{"$f":"AG20","v":0},"¾¾","¾¾"]
[null,"Comércio",null,"establ. ≤ 2500m2 a.c.",null,"¾¾",null,"¾¾","¾¾","¾¾",{"$f":"G21/E21","v":{"$error":"#DIV/0!"}},{"$f":"IF(ISERR(K21),0,K21)","v":0},{"$f":"G21*28/100","v":0},{"$f":"G21*25/100","v":0},{"$f":"G21*1/30","v":0},{"$f":"G21/50","v":0},"¾¾","¾¾",null,null,null,"establ. <  2500m2 a.c.",0,"¾¾",0,"¾¾","¾¾","¾¾",{"$f":"Y21/W21","v":{"$error":"#DIV/0!"}},{"$f":"IF(ISERR(AC21),0,AC21)","v":0},{"$f":"Y21*28/100","v":0},{"$f":"Y21*25/100","v":0},{"$f":"Y21*1/30","v":0},{"$f":"Y21/50","v":0},"¾¾","¾¾"]
[null,null,null,"establ. > 2500m2 a.c.",null,"¾¾",null,"¾¾","¾¾","¾¾",{"$f":"G22/E22","v":{"$error":"#DIV/0!"}},{"$f":"IF(ISERR(K22),0,K22)","v":0},{"$f":"G22*28/100","v":0},{"$f":"G22*25/100","v":0},{"$f":"G22*1/20","v":0},{"$f":"G22/50","v":0},{"$f":"G22*1/1250","v":0},"¾¾",null,null,null,"establ. > 2500m2 a.c.",0,"¾¾",0,"¾¾","¾¾","¾¾",{"$f":"Y22/W22","v":{"$error":"#DIV/0!"}},{"$f":"IF(ISERR(AC22),0,AC22)","v":0},{"$f":"Y22*28/100","v":0},{"$f":"Y22*25/100","v":0},{"$f":"Y22*1/20","v":0},{"$f":"Y22/50","v":0},{"$f":"Y22*1/1250","v":0},"¾¾"]
[null,"Serviços",null,"establ. ≤ 2500m2 a.c.",null,"¾¾",null,null,"¾¾","¾¾",{"$f":"H23/E23","v":{"$error":"#DIV/0!"}},{"$f":"IF(ISERR(K23),0,K23)","v":0},{"$f":"H23*28/100","v":0},{"$f":"H23*25/100","v":0},{"$f":"H23*1/30","v":0},{"$f":"H23/50","v":0},"¾¾","¾¾",null,"Serviços",null,"establ. < 1000m2 a.c.",0,"¾¾","¾¾",0,"¾¾","¾¾",{"$f":"Z23/W23","v":{"$error":"#DIV/0!"}},{"$f":"IF(ISERR(AC23),0,AC23)","v":0},{"$f":"Z23*28/100","v":0},{"$f":"Z23*25/100","v":0},{"$f":"Z23*1/30","v":0},{"$f":"Z23/50","v":0},"¾¾","¾¾"]
[null,null,null,"establ. > 2500m2 a.c.",null,"¾¾","¾¾",null,"¾¾","¾¾",{"$f":"H24/E24","v":{"$error":"#DIV/0!"}},{"$f":"IF(ISERR(K24),0,K24)","v":0},{"$f":"H24*28/100","v":0},{"$f":"H24*25/100","v":0},{"$f":"H24*1/20","v":0},{"$f":"H24/50","v":0},{"$f":"H24*1/1250","v":0},"¾¾",null,null,null,"establ. <  2500m2 a.c.",0,"¾¾","¾¾",0,"¾¾","¾¾",{"$f":"Z24/W24","v":{"$error":"#DIV/0!"}},{"$f":"IF(ISERR(AC24),0,AC24)","v":0},{"$f":"Z24*28/100","v":0},{"$f":"Z24*25/100","v":0},{"$f":"Z24*1/20","v":0},{"$f":"Z24/50","v":0},{"$f":"Z24*1/1250","v":0},"¾¾"]
[null,"Indústria e ou armazéns",null,"¾¾",null,"¾¾","¾¾",null,null,null,"¾¾","¾¾",{"$f":"I25*23/100","v":0},{"$f":"I25*10/100","v":0},{"$f":"I25*1/100","v":0},{"$f":"I25/350","v":0},{"$f":"MAX((I25*1/750),J25)","v":0},{"$f":"IF(I25>0,(I25-1250)/1000,0)","v":0},null,"Indústria e ou armazéns",null,"¾¾","¾¾","¾¾","¾¾","¾¾",0,0,"¾¾","¾¾",{"$f":"AA25*23/100","v":0},{"$f":"AA25*10/100","v":0},{"$f":"AA25*1/100","v":0},{"$f":"AA25/350","v":0},{"$f":"MAX((AA25*1/750),AB25)","v":0},{"$f":"IF(AA25>0,(AA25-1250)/1000,0)","v":0}]
[null,"Subtotais",null,null,{"$f":"SUM(E10:E25)","v":0},0,0,0,null,null,"¾¾","¾¾",{"$f":"SUM(M10:M25)","v":0},0,0,0,0,0,null,"Subtotais",null,null,{"$f":"SUM(W10:W25)","v":0},0,0,0,0,0,"¾¾","¾¾",{"$f":"SUM(AE10:AE25)","v":0},0,0,0,0,0]
[]
[null,"TOTAIS",null,"ESPAÇOS VERDES E DE UTILIZAÇÃO COLECTIVA E EQUIPAMENTOS DE UTILIZAÇÃO COLECTIVA",null,null,null,null,null,null,null,null,{"$f":"SUM(M26:N26)","v":0},null,null,null,null,null,null,"TOTAIS",null,"ESPAÇOS VERDES E DE UTILIZAÇÃO COLECTIVA E EQUIPAMENTOS DE UTILIZAÇÃO COLECTIVA",null,null,null,null,null,null,null,null,{"$f":"SUM(AE26:AF26)","v":0}]
[null,null,null,"N.º DE LUGARES DE ESTACIONAMENTOS OBRIGATÓRIOS",null,null,null,"LIGEIROS",null,null,null,"Publico",{"$f":"ROUNDUP(P26,0)","v":0},null,null,null,null,null,null,null,null,"N.º DE LUGARES DE ESTACIONAMENTOS OBRIGATÓRIOS",null,null,null,"LIGEIROS",null,null,null,"Publico",{"$f":"AH26","v":0}]
[null,null,null,null,null,null,null,null,null,null,null,"Privado",{"$f":"ROUNDUP(O26,0)","v":0},null,null,null,null,null,null,null,null,null,null,null,null,null,null,null,null,"Privado",{"$f":"AG26","v":0}]
[null,null,null,null,null,null,null,"PESADOS",null,null,null,"Público",{"$f":"ROUNDUP(R26,0)","v":0},null,null,null,null,null,null,null,null,null,null,null,null,"PESADOS",null,null,null,"Público",{"$f":"AJ26","v":0}]
[null,null,null,null,null,null,null,null,null,null,null,"Privado",{"$f":"ROUNDUP(Q26,0)","v":0},null,null,null,null,null,null,null,null,null,null,null,null,null,null,null,null,"Privado",{"$f":"AI26","v":0}]
[]
[null,"2. Áreas cedidas na operação urbanística",null,null,null,null,null,null,null,null,null,null,null,null,null,null,null,null,null,"2. Áreas cedidas na operação urbanística"]
[null,"TOTAIS",null,"ESPAÇOS VERDES E DE UTILIZAÇÃO COLECTIVA E EQUIPAMENTOS DE UTILIZAÇÃO COLECTIVA",null,null,null,null,null,null,null,null,null,null,null,null,null,null,null,"TOTAIS",null,"ESPAÇOS VERDES E DE UTILIZAÇÃO COLECTIVA E EQUIPAMENTOS DE UTILIZAÇÃO COLECTIVA",null,null,null,null,null,null,null,null,0]
[null,null,null,"N.º DE LUGARES DE ESTACIONAMENTOS",null,null,null,"LIGEIROS","Cedidos ao domínio público",null,null,null,null,null,null,null,null,null,null,null,null,"N.º DE LUGARES DE ESTACIONAMENTOS",null,null,null,"LIGEIROS","Cedidos ao domínio público",null,null,null,0]
[null,null,null,null,null,null,null,null,"Utilização colectiva / privativa",null,null,null,null,null,null,null,null,null,null,null,null,null,null,null,null,null,"Utilização colectiva",null,null,null,0]
[null,null,null,null,null,null,null,"PESADOS","Cedidos ao domínio público",null,null,null,null,null,null,null,null,null,null,null,null,null,null,null,null,"PESADOS","Cedidos ao domínio público",null,null,null,0]
[null,null,null,null,null,null,null,null,"Utilização colectiva / privativa",null,null,null,null,null,null,null,null,null,null,null,null,null,null,null,null,null,"Utilização colectiva",null,null,null,0]
[]
[null,"3. Áreas não cedidas (áreas mínimas obrigatórias menos as áreas cedidas)",null,null,null,null,null,null,null,null,null,null,"ÁREA (M2)",null,null,null,null,null,null,"3. Áreas não cedidas (áreas mínimas obrigatórias menos as áreas cedidas)",null,null,null,null,null,null,null,null,null,null,"ÁREA (M2)"]
[null,"TOTAIS",null,"ESPAÇOS VERDES E DE UTILIZAÇÃO COLECTIVA E EQUIPAMENTOS DE UTILIZAÇÃO COLECTIVA",null,null,null,null,null,null,null,null,{"$f":"IF(ROUNDUP(M28-M35,0)<0,0,ROUNDUP(M28-M35,0))","v":0},null,null,null,null,null,null,"TOTAIS",null,"ESPAÇOS VERDES E DE UTILIZAÇÃO COLECTIVA E EQUIPAMENTOS DE UTILIZAÇÃO COLECTIVA",null,null,null,null,null,null,null,null,{"$f":"AE28-AE35","v":0}]
[null,null,null,"ESTACIONAMENTO",null,null,null,"LIGEIROS (20m2 por lugar em falta)",null,null,null,"Publico",{"$f":"IF(ROUNDUP(M29-M36,0)<0,0,ROUNDUP(M29-M36,0))","v":0}," x 20 m2  =",{"$f":"M43*20","v":0},null,null,null,null,null,null,"ESTACIONAMENTO",null,null,null,"LIGEIROS (20m2 por lugar em falta)",null,null,null,"Publico",{"$f":"ROUNDUP(AE29-AE36,0)","v":0}," x 20 m2  =",{"$f":"AE43*20","v":0}]
[null,null,null,null,null,null,null,null,null,null,null,"Privado",{"$f":"IF(ROUNDUP(M30-M37,0)<0,0,IF((M36-M29)>0,MAX(0,M30-M37-(M36-M29)),ROUNDUP(M30-M37,0)))","v":0}," x 20 m2  =",{"$f":"M44*20","v":0},null,null,null,null,null,null,null,null,null,null,null,null,null,null,"Privado",{"$f":"ROUNDUP(AE30-AE37,0)","v":0}," x 20 m2  =",{"$f":"AE44*20","v":0}]
[null,null,null,null,null,null,null,"PESADOS (75m2 por lugar em falta)",null,null,null,"Publico",{"$f":"IF(ROUNDUP(M31-M38,0)<0,0,ROUNDUP(M31-M38,0))","v":0}," x 75 m2  =",{"$f":"M45*75","v":0},null,null,null,null,null,null,null,null,null,null,"PESADOS (75m2 por lugar em falta)",null,null,null,"Publico",{"$f":"ROUNDUP(AE31-AE38,0)","v":0}," x 75 m2  =",{"$f":"AE45*75","v":0}]
[null,null,null,null,null,null,null,null,null,null,null,"Privado",{"$f":"IF(ROUNDUP(M32-M39,0)<0,0,IF((M38-M31)>0,MAX(0,M32-M39-(M38-M31)),ROUNDUP(M32-M39,0)))","v":0}," x 75 m2  =",{"$f":"M46*75","v":0},null,null,null,null,null,null,null,null,null,null,null,null,null,null,"Privado",{"$f":"ROUNDUP(IF(AE32-AE39<0,0,AE32-AE39),0)","v":0}," x 75 m2  =",{"$f":"AE46*75","v":0}]
[null,null,null,"SOMA",null,null,null,null,null,null,null,null,{"$f":"SUM(O43:P46)+M42","v":0},null,null,null,null,null,null,null,null,"SOMA",null,null,null,null,null,null,null,null,{"$f":"SUM(AG43:AH46)+AE42","v":0}]
[]
[null,"4. Valor da Compensação (C = ANC x IC x IGE x PC/45) ",null,null,null,null,null,null,"Notas:",null,null,null,null,null,null,null,null,null,null,"4. Valor da Compensação (C = ANC x IC x IGE x PC/45) ",null,null,null,null,null,null,"Notas:"]
[null,"ANC (áreas não cedidas)",null,null,null,null,{"$f":"M47","v":0},null,null,null,null,null,null,null,null,null,null,null,null,"ANC (áreas não cedidas)",null,null,null,{"$f":"AE47","v":0}]
[null,"IC (índice de construção utilizado em concreto na operação urbanística)",null,null,null,null,null,null,null,null,null,null,null,null,null,null,null,null,null,"IC (índice de construção utilizado em concreto na operação urbanística)",null,null,null,0,null,null,"Foi considerado em falta 1 lugar de estacionamento pesado público."]
[null,"IGE (infra-estruturas gerais existentes no local) (art.º 70.º RLCTORM)",null,null,null,"Nenhuma",{"$f":"VLOOKUP(F52,'DADOS TMU'!B37:F42,5,FALSE)","v":0.75},null,null,null,null,null,null,null,null,null,null,null,null,"IGE (infra-estruturas gerais existentes no local) (art.º 70.º RLCTORM)",null,null,null,1,null,null,"Os lugares de estac. em frente ao lote, mas fora do mesmo, não são considerados por já pertencerem às Obras de Urbanização."]
[null,"PC [preço de construção por m2 (532€/45)]  Portaria n.º 16/2024 de 23 de janeiro ",null,null,null,null,11.82,null,null,null,null,null,null,null,null,null,null,null,null,"PC [preço de construção (ano de 2012= 482,40)] / 45",null,null,null,{"$f":"482.4/45","v":10.719999999999999},null,null,"Os lugares de estacionamento em falta são arredondados ao n.º inteiro superior."]
[null,"C (COMPENSAÇÃO EM EUROS)",null,null,null,null,{"$f":"IF(G50*G51*G52*G53<0,0,G50*G51*G52*G53)","v":0},null,null,null,null,null,null,null,null,null,null,null,null,"C (COMPENSAÇÃO EM EUROS)",null,null,null,{"$f":"IF(X50*X51*X52*X53<0,0,X50*X51*X52*X53)","v":0}]
[]
[null,null,null,null,null,null,null,null,null,null,null,null,null,null,null,null,null,null,null,null,null,"n.º2, art.º6.º, RPDML e DR 9/2007"]

{"sheet":"TMU","index":1,"n_rows":59,"n_cols":10,"rows_kept":59,"cut":false,"hidden":false,"merged":[[39,9,40,9],[24,3,24,8],[58,1,58,8],[35,1,42,1],[43,1,46,1],[56,3,56,8],[40,3,40,6],[0,2,0,9],[38,3,38,6],[5,4,5,9],[6,4,6,9],[37,9,38,9]]}
[null,null,"INTRODUZIR DADOS APENAS NOS CAMPOS A AMARELO"]
[]
[]
[]
[]
[null,"Processo n.º: ",null,null,{"$f":"COMPENSAÇÃO!C3","v":"xxxxxxxxxxxxx"}]
[null,"Requerente:",null,null,{"$f":"COMPENSAÇÃO!C4","v":"xxxxxxxxxxxxx"}]
[]
[null,"CÁLCULO DO VALOR DA CAUÇÃO - INFRAESTRUTURAS"]
[]
[null,null,"1. Infraestruturas rodoviárias :",null,null,null,null,null,"Val s. IVA","Val. c/ IVA"]
[null,null,null,"1.1. Infra-estruturas viárias ",null,null,null,null,null,{"$f":"I12*1.23","v":0}]
[null,null,null,"1.2. Infra-estruturas sinalização ",null,null,null,null,null,{"$f":"I13*1.23","v":0}]
[null,null,null,"1.3. Águas pluviais ",null,null,null,null,null,0]
[null,null,null,"1.4. Arranjos Exteriores",null,null,null,null,null,0]
[null,null,"2. Águas:",null,null,null,null,null,null,0]
[null,null,null,"2.1. Abastecimento de água",null,null,null,null,null,0]
[null,null,null,"2.2. Águas residuais ",null,null,null,null,null,0]
[null,null,"3. Energia eléctrica ",null,null,null,null,null,null,0]
[null,null,"4. Infraestruturas telefónicas ",null,null,null,null,null,null,0]
[null,null,"5. Infrestruturas de Gás ",null,null,null,null,null,null,0]
[null,null,"6. Serviço de gestão de residuos sólidos urbanos (RSU)",null,null,null,null,null,null,0]
[null,null,null,null,null,null,null,"Total (S/ IVA)",{"$f":"SUM(I12:I22)","v":0}]
[]
[null,null,null,"(1) TOTAL  DO VALOR DA CAUÇÃO A PRESTAR (C/ IVA 23%)",null,null,null,null,null,{"$f":"SUM(J12:J22)","v":0}]
[]
[]
[null,"COMPENSAÇÃO POR ÁREAS NÃO CEDIDAS"]
[]
[null,null,"Valor das taxas por área não cedida (conforme cálculo em folha anexa)",null,null,null,null,null,null,{"$f":"COMPENSAÇÃO!G54","v":0}]
[]
[null,"TAXA MUNICIPAL DE URBANIZAÇÃO (TMU)"]
[]
[null,null,"Art.º 64.º  -Taxa devida nas obras de construção ou ampliação"]
[]
[null,"A","AC","( área de construção )"]
[]
[null,null,"U","( utilização )",null,null,null,null,null,{"$f":"VLOOKUP(D39,'DADOS TMU'!B3:F5,5,FALSE)","v":0.25}]
[null,null,null,"Habitação unifamiliar e respectivos anexos"]
[null,null,"IGE","( infraestruturas gerais existentes )",null,null,null,null,null,{"$f":"VLOOKUP(D41,'DADOS TMU'!B19:F24,5,FALSE)","v":0.2}]
[null,null,null,"Nenhuma"]
[null,null,"PC ","( preço de construção por m2)"]
[null,null,null,"Portaria n.º 16/2024 de 23 de janeiro",null,null,null,null,null,532]
[null,"B","IL","( infraestruturas locais )"]
[null,null,null,null,null,null,null,null,null,{"$f":"J25","v":0}]
[null,null,"IGN","( infraestruturas gerais necessárias )"]
[null,null,null,null,null,null,null,null,null,0]
[]
[]
[null,null,"A",null,null,null,null,{"$f":"J36*J38*J40*J43/45","v":0}]
[]
[null,null,"B ( <= 80 % do valor de A)",null,null,null,{"$f":"J45/10+J47/1.25","v":0},{"$f":"IF(G52 >= 0.8*H50,0.8*H50,G52)","v":0}]
[]
[null,null,null,null,null,null,null,"TMU  =  A  -  B  =",null,{"$f":"H50-H52","v":0}]
[]
[]
[null,null,null,"(2) TOTAL DAS TAXAS (Compensação + TMU)",null,null,null,null,null,{"$f":"J54+J30","v":0}]
[]
[null,"(1) TOTAL  DO VALOR DA CAUÇÃO A PRESTAR + (2) TOTAL DAS TAXAS",null,null,null,null,null,null,null,{"$f":"J25+J57","v":0}]

{"sheet":"DADOS TMU","index":2,"n_rows":42,"n_cols":6,"rows_kept":42,"cut":false,"hidden":true,"merged":[]}
[]
[null,"Art.º 64,º"]
[null,"Habitação unifamiliar e respectivos anexos",null,null,null,0.25]
[null,"Habitação bifamiliar e respectivos anexos",null,null,null,0.27500000000000002]
[null,"Outras utilizações",null,null,null,0.3]
[]
[]
[]
[]
[]
[null,"Infra-estruturas gerais existentes no local (acesso rodoviário,"]
[null,"com pavimentação em calçada, betuminoso ou equivalente junto do"]
[null,"prédio; passeios em toda a extensão do arruamento ou do quarteirão,"]
[null,"do lado do prédio; rede de abastecimento domiciliário de água, com"]
[null,"serviço junto do prédio; rede de saneamento, com colector em serviço"]
[null,"junto do prédio; rede de distribuição de energia eléctrica em baixa"]
[null,"tensão com serviço junto do prédio; e rede de drenagem de águas"]
[null,"pluviais com colector em serviço junto do prédio)"]
[null,"Nenhuma",null,null,null,0.2]
[null,"Uma",null,null,null,0.22]
[null,"Duas",null,null,null,0.24]
[null,"Três",null,null,null,0.26]
[null,"Quatro",null,null,null,0.28000000000000003]
[null,"Cinco ou mais",null,null,null,0.3]
[]
[]
[]
[null,"ART 70"]
[null,"Infra-estruturas gerais existentes no local (acesso rodoviário,"]
[null,"com pavimentação em calçada, betuminoso ou equivalente junto do"]
[null,"prédio; passeios em toda a extensão do arruamento ou do quarteirão,"]
[null,"do lado do prédio; rede de abastecimento domiciliário de água, com"]
[null,"serviço junto do prédio; rede de saneamento, com colector em serviço"]
[null,"junto do prédio; rede de distribuição de energia eléctrica em baixa"]
[null,"tensão com serviço junto do prédio; e rede de drenagem de águas"]
[null,"pluviais com colector em serviço junto do prédio)"]
[null,"Nenhuma",null,null,null,0.75]
[null,"Uma",null,null,null,0.8]
[null,"Duas",null,null,null,0.85]
[null,"Três",null,null,null,0.9]
[null,"Quatro",null,null,null,0.95]
[null,"Cinco ou mais",null,null,null,1]